bitfinex-derivatives/quotes_ETHF0:USTF0_20241023
["timestamp","ask_amount","ask_price","bid_price","bid_amount"]
[1729704798667,7.38614478,2503.6,2503.2,0.39985]
[1729704798668,5.30085,2503.3,2503.2,0.39985]
[1729704799165,4.96797852,2503.3,2503.2,0.39985]
[1729704799563,5.36781852,2503.3,2503.2,0.39985]
[1729704799962,0.39986,2503.2,2503.1,2.14386]
[1729704800261,1.75657852,2503.2,2503.0,3.12]
[1729704800464,0.3999,2503.0,2502.9,0.39989]
[1729704800771,3.27477852,2503.0,2502.9,0.39989]
[1729704801063,1.6896,2503.2,2502.8,4.9482]
[1729704801259,1.6896,2503.2,2503.1,0.39988]
[1729704801454,1.75660854,2503.2,2503.1,0.39988]
[1729704801662,6.06965941,2503.2,2503.1,0.39988]
[1729704801865,11.06451941,2503.2,2502.8,1.8282]
[1729704802059,0.39991,2502.9,2502.8,0.39991]
[1729704802258,0.46691854,2502.9,2502.8,0.39991]
[1729704802455,4.77996941,2502.9,2502.8,0.39991]
[1729704802656,8.37525941,2502.9,2502.8,0.39991]
[1729704802861,8.37526949,2502.9,2502.8,0.39991]
[1729704803156,4.77997949,2502.9,2502.6,4.11989]
[1729704803360,3.2078,2502.7,2502.1,3.12]
[1729704803562,3.2078,2502.4,2502.3,0.4]
[1729704803772,3.27481862,2502.4,2502.3,44.32]
[1729704804471,3.27481862,2502.4,2502.3,3.52]
[1729704805358,3.27481862,2502.4,2502.1,40.8]
[1729704805359,3.27481862,2502.4,2502.2,0.40002]
[1729704805558,1.77531862,2502.3,2502.2,0.40002]
[1729704805967,6.35136606,2502.3,2502.2,0.40002]
[1729704806457,6.28434744,2502.3,2502.2,0.40002]
[1729704807266,0.40002,2502.2,2502.1,40.8]
[1729704807563,8.72818302,2502.2,2501.7,1.00024]
[1729704807766,3.2078,2502.0,2501.9,0.40007]
[1729704808164,0.40008,2501.9,2501.8,0.40008]
[1729704808371,7.53916302,2502.0,2501.7,40.8]
[1729704808663,1.7243,2501.8,2501.7,0.4001]
[1729704808965,5.89174475,2501.8,2501.7,0.4001]
[1729704810168,0.99992,2502.6,2501.7,0.4001]
[1729704810169,3.2078,2502.4,2502.3,0.4]
[1729704810363,0.40001,2502.3,2502.2,0.4]
[1729704810561,4.30859749,2502.3,2502.2,0.4]
[1729704810869,3.6078,2502.4,2502.3,0.4]
[1729704811168,7.91639749,2502.4,2502.3,0.4]
[1729704811668,7.51639749,2502.4,2502.3,0.4]
[1729704812576,3.2078,2502.4,2502.3,0.4]
[1729704816172,3.60779,2502.4,2502.3,0.4]
[1729704816371,3.2078,2502.4,2502.3,0.4]
[1729704817471,11.82878049,2502.4,2502.3,0.4]
[1729704817671,15.33138049,2502.4,2502.3,0.4]
[1729704818369,15.33138049,2502.4,2501.8,0.40006]
[1729704818370,0.40008,2501.9,2501.8,0.40006]
[1729704818670,3.60787,2501.9,2501.8,0.40006]
[1729704818870,7.78388063,2501.9,2501.8,0.40006]
[1729704819076,0.40011,2501.7,2501.6,0.4001]
[1729704819279,2.1355,2501.8,2501.7,0.4001]
[1729704819574,0.40011,2501.7,2501.6,0.40011]
[1729704819884,4.71205425,2501.7,2501.6,0.40011]
[1729704820076,8.70965425,2501.7,2501.6,0.40011]
[1729704820275,0.40016,2501.4,2501.3,0.40016]
[1729704820573,4.76667456,2501.4,2501.3,0.40016]
[1729704821365,1.00046,2501.2,2500.9,40.8]
[1729704821575,10.11881458,2501.1,2500.3,3.2078]
[1729704821767,10.11881458,2501.1,2500.0,1.00094]
[1729704821768,3.2078,2500.5,2500.0,1.00094]
[1729704821969,3.2078,2500.5,2500.3,0.40031]
[1729704821970,0.40031,2500.4,2500.3,0.40031]
[1729704822165,0.40031,2500.4,2499.9,3.2078]
[1729704822166,4.45130633,2500.4,2499.9,3.2078]
[1729704822369,4.85161633,2500.4,2499.8,1.001]
[1729704822569,4.45130633,2500.4,2500.3,0.40032]
[1729704822980,0.40023,2500.9,2500.4,1.40108]
[1729704823173,3.2078,2501.0,2500.4,0.40031]
[1729704823369,4.42461993,2500.8,2500.7,0.40026]
[1729704823576,4.50168021,2500.9,2500.5,1.8378]
[1729704823873,3.2078,2501.0,2500.5,1.8378]
[1729704824072,4.50168021,2500.9,2500.5,1.8378]
[1729704824272,3.2078,2500.7,2500.5,2.23808]
[1729704824475,4.50168021,2500.9,2500.2,3.12]
[1729704824770,4.50168021,2500.9,2500.1,2.76726]
[1729704824771,4.49912445,2500.6,2500.1,2.76726]
[1729704824976,7.45376544,2500.7,2500.4,0.40029]
[1729704825178,3.2078,2500.7,2500.6,0.40027]
[1729704825375,1.864,2501.1,2501.0,0.40021]
[1729704825773,9.33939224,2501.1,2501.0,0.40021]
[1729704826175,9.33939224,2501.1,2500.5,2.69412]
[1729704826176,9.33939224,2501.1,2500.9,0.40022]
[1729704826373,9.33939224,2501.1,2500.8,0.40024]
[1729704826374,12.85960224,2501.1,2500.8,0.40024]
[1729704826770,0.40022,2501.0,2500.8,0.40024]
[1729704826970,3.52024,2500.9,2500.6,0.40027]
[1729704827172,3.2078,2500.8,2500.5,1.6934]
[1729704827478,3.60805,2500.8,2500.6,0.40027]
[1729704827677,4.62618589,2500.7,2500.6,0.40027]
[1729704828282,8.62538589,2500.7,2500.6,0.40027]
[1729704828478,10.35228589,2500.7,2500.6,0.40027]
[1729704831583,10.35228589,2500.7,2500.6,0.40028]
[1729704832483,13.47228589,2500.7,2500.2,1.6972]
[1729704832686,3.2078,2500.5,2500.4,0.4003]
[1729704833078,9.20945506,2500.5,2500.4,0.4003]
[1729704833478,12.6077027,2500.5,2500.4,0.4003]
[1729704833684,13.0080027,2500.5,2500.3,0.40032]
[1729704833880,11.7285027,2500.5,2500.3,0.40032]
[1729704834383,0.40032,2500.4,2500.2,2.09753]
[1729704834782,4.29902376,2500.3,2500.2,2.09753]
[1729704835380,4.29902376,2500.4,2500.2,1.6972]
[1729704835585,4.29902376,2500.4,2500.3,0.40033]
[1729704835782,3.2078,2500.8,2500.7,0.40025]
[1729704836185,7.51904724,2500.8,2500.7,0.40025]
[1729704836495,11.51824724,2500.8,2500.7,0.40025]
[1729704837387,11.51824724,2500.8,2500.5,0.40028]
[1729704837585,7.51904724,2500.8,2500.3,1.00083]
[1729704837981,7.51904724,2500.8,2500.7,0.40026]
[1729704838180,7.91929724,2500.8,2500.7,0.40026]
[1729704838477,11.51824724,2500.8,2500.2,1.6972]
[1729704838679,3.52026,2500.7,2500.6,0.40028]
[1729704839091,7.28567793,2500.7,2500.6,0.40028]
[1729704839776,7.68593793,2500.7,2500.6,0.40028]
[1729704840091,0.40031,2500.5,2500.2,1.6972]
[1729704840289,3.2078,2500.5,2500.4,0.40031]
[1729704840586,7.55742851,2500.5,2500.4,0.40031]
[1729704841587,4.34962851,2500.5,2500.4,0.40031]
[1729704842687,3.2078,2500.8,2500.7,0.40026]
[1729704842881,3.60805,2500.8,2500.7,0.40026]
[1729704843078,8.19459465,2500.8,2500.7,0.40026]
[1729704843291,7.79434465,2500.8,2500.4,0.40031]
[1729704843588,0.40027,2500.7,2500.6,0.40026]
[1729704843993,4.48770428,2500.7,2500.6,0.40026]
[1729704844186,4.88796428,2500.7,2500.6,0.40026]
[1729704844691,0.40031,2500.5,2500.2,3.5021]
[1729704844885,3.60811,2500.5,2500.4,0.40029]
[1729704845185,8.0489273,2500.5,2500.4,0.40029]
[1729704845978,7.6486173,2500.5,2500.4,0.40029]
[1729704846488,3.2078,2500.5,2500.4,4.39949]
[1729704846685,3.2078,2500.5,2500.4,0.40029]
[1729704846897,7.45587152,2500.5,2500.4,0.40029]
[1729704847185,7.85617152,2500.5,2500.4,0.40029]
[1729704847693,7.45587152,2500.5,2500.4,0.40029]
[1729704848089,7.85617152,2500.5,2500.4,0.40029]
[1729704848489,7.45587152,2500.5,2500.4,0.40029]
[1729704848889,7.85617152,2500.5,2500.4,0.40029]
[1729704849491,11.45507152,2500.5,2500.2,1.6972]
[1729704849696,2.19313,2500.4,2500.3,0.40031]
[1729704850095,10.53034871,2500.4,2500.3,0.40031]
[1729704850789,10.13001871,2500.4,2500.3,0.40031]
[1729704850993,10.53032871,2500.4,2500.3,0.40031]
[1729704851388,10.13001871,2500.4,2500.3,0.40031]
[1729704851794,4.33801871,2500.4,2500.3,0.40031]
[1729704852388,4.33801871,2500.4,2500.3,7.51951]
[1729704852692,3.2078,2500.8,2500.7,0.40026]
[1729704852994,7.39791512,2500.8,2500.7,0.40026]
[1729704856994,7.79816512,2500.8,2500.7,0.40026]
[1729704857194,7.39791512,2500.8,2500.7,0.40026]
[1729704857792,7.79816512,2500.8,2500.7,0.40026]
[1729704857987,7.39791512,2500.8,2500.7,0.40026]
[1729704858585,7.39791512,2500.8,2500.7,7.51946]
[1729704858797,0.40017,2501.3,2501.2,0.40017]
[1729704859000,8.3583,2501.4,2501.0,1.00052]
[1729704859197,4.18795219,2501.3,2501.2,0.40018]
[1729704859395,4.58812219,2501.3,2501.2,0.40018]
[1729704859595,4.18795219,2501.3,2501.2,0.40018]
[1729704860791,3.2078,2501.9,2501.8,0.40009]
[1729704860996,3.60788,2501.9,2501.8,0.40009]
[1729704861299,7.05213889,2501.9,2501.8,0.40009]
[1729704861994,7.45220889,2501.9,2501.8,0.40009]
[1729704862199,7.05213889,2501.9,2501.8,0.40009]
[1729704862596,7.05213889,2501.9,2501.8,3.52009]
[1729704862799,0.40003,2502.2,2502.1,0.40004]
[1729704862999,0.40002,2502.3,2502.2,0.40002]
[1729704863199,3.60781,2502.4,2501.9,1.40025]
[1729704863497,4.58201814,2502.3,2502.0,1.00015]
[1729704863704,4.58201814,2502.3,2502.2,0.40002]
[1729704864095,0.40001,2502.3,2502.2,0.40002]
[1729704864398,4.58625612,2502.3,2502.0,1.8348]
[1729704864696,4.49821705,2502.4,2502.0,1.8348]
[1729704864907,4.49821705,2502.4,2501.4,1.04339437]
[1729704864908,3.12,2502.1,2501.4,1.04339437]
[1729704865103,1.8033,2502.0,2501.9,0.40007]
[1729704865292,6.30151705,2502.0,2501.9,0.40007]
[1729704865491,6.70157705,2502.0,2501.9,0.40007]
[1729704865999,6.30151705,2502.0,2501.9,0.40007]
[1729704866702,6.70157705,2502.0,2501.9,0.40007]
[1729704867203,3.2078,2502.2,2502.1,0.40004]
[1729704868004,3.2078,2502.2,2502.1,4.39684]
[1729704868305,3.2078,2502.2,2502.1,8.04164]
[1729704868798,3.2078,2502.5,2502.1,8.04164]
[1729704869006,3.2078,2502.5,2502.4,0.39999]
[1729704869500,7.62336157,2502.5,2502.4,2.24859]
[1729704869700,7.62336157,2502.5,2502.4,5.36859]
[1729704870204,7.62336157,2502.5,2502.4,2.24859]
[1729704870801,0.40002,2502.3,2502.2,0.40001]
[1729704870999,7.62336157,2502.5,2502.1,1.8053]
[1729704871196,8.02334157,2502.5,2502.4,0.39999]
[1729704871399,7.62336157,2502.5,2502.4,0.39999]
[1729704871806,7.62336157,2502.5,2502.4,2.24859]
[1729704872000,8.02334157,2502.5,2502.4,2.24859]
[1729704872496,7.62336157,2502.5,2502.4,2.24859]
[1729704874007,4.41556157,2502.5,2502.4,2.24859]
[1729704874202,7.62336157,2502.5,2502.4,2.24859]
[1729704876102,3.6077,2503.0,2502.9,0.39991]
[1729704876514,8.17846984,2503.0,2502.9,0.39991]
[1729704876806,1.7929,2503.2,2503.1,0.39988]
[1729704877002,3.2078,2503.4,2503.1,3.12]
[1729704877306,3.2078,2503.4,2503.3,3.51985]
[1729704878104,0.39987,2503.2,2502.9,3.12]
[1729704878308,0.39987,2503.2,2503.1,0.39986]
[1729704878698,4.78895239,2503.2,2503.1,0.39986]
[1729704879110,4.38908239,2503.2,2502.8,44.3331]
[1729704879412,2.17608,2503.1,2503.0,0.39989]
[1729704879603,2.17608,2503.1,2502.8,44.3331]
[1729704879604,4.984,2503.1,2502.8,1.7998]
[1729704879803,4.984,2503.1,2502.7,3.12]
[1729704879804,9.53698579,2503.1,2502.7,3.12]
[1729704880007,9.93687579,2503.1,2503.0,0.3999]
[1729704880706,2.17865,2503.3,2503.2,0.39986]
[1729704880911,1.7788,2503.3,2503.2,0.39986]
[1729704881103,2.17604,2503.4,2503.3,0.39985]
[1729704881304,1.7762,2503.4,2503.3,0.39985]
[1729704881607,6.24277086,2503.4,2503.3,0.39985]
[1729704883408,6.64260086,2503.4,2503.3,0.39985]
[1729704884114,0.39986,2503.3,2503.2,0.39986]
[1729704884415,4.71800069,2503.3,2503.2,0.39986]
[1729704885114,4.31814069,2503.3,2502.9,4.7992]
[1729704885313,3.2078,2503.2,2503.1,0.39986]
[1729704885711,7.54909521,2503.2,2503.1,0.39986]
[1729704886305,7.94895521,2503.2,2503.1,0.39986]
[1729704886506,0.39991,2503.0,2502.9,0.39989]
[1729704886711,0.3999,2503.1,2503.0,0.39988]
[1729704886912,0.39991,2503.0,2502.9,0.3999]
[1729704887444,0.39989,2503.1,2503.0,0.39988]
[1729704888402,0.39989,2503.1,2502.7,4.11986]
[1729704888719,3.60774,2502.9,2502.8,0.39992]
[1729704889216,0.39994,2502.9,2502.8,0.39992]
[1729704889407,3.60774,2502.9,2502.8,0.39992]
[1729704890109,3.4941,2503.0,2502.6,0.9999]
[1729704890315,0.39992,2502.9,2502.8,0.39991]
[1729704890515,4.78669682,2502.9,2502.8,0.39991]
[1729704890917,4.38677682,2502.9,2502.8,0.39991]
[1729704891716,7.59457682,2502.9,2502.8,0.39991]
[1729704893521,6.99424634,2502.9,2502.8,0.39991]
[1729704895622,3.78644634,2502.9,2502.8,0.39991]
[1729704896613,3.78644634,2502.9,2502.4,40.8]
[1729704896815,3.78644634,2502.9,2502.0,0.40004]
[1729704896816,0.40005,2502.1,2502.0,0.40004]
[1729704897012,3.12,2502.1,2501.5,6.97362608]
[1729704897325,0.40014,2501.6,2501.5,0.40012]
[1729704897514,6.3278,2501.9,2501.2,3.5425]
[1729704897715,7.83057758,2501.6,2501.3,40.8]
[1729704898031,3.60793,2501.6,2501.5,0.40014]
[1729704898319,8.14626379,2501.6,2501.5,0.40014]
[1729704898820,0.40014,2501.5,2501.4,0.40014]
[1729704899222,0.40015,2501.4,2501.3,41.20016]
[1729704899422,0.40015,2501.4,2501.3,40.8]
[1729704899614,10.41865638,2501.4,2501.3,0.40017]
[1729704899815,4.29500638,2501.4,2501.3,0.40017]
[1729704900022,4.29500638,2501.4,2501.3,41.20017]
[1729704900524,4.69515638,2501.4,2501.3,40.8]
[1729704900723,0.40017,2501.3,2501.2,0.40017]
[1729704900923,6.04320638,2501.4,2501.3,0.40017]
[1729704901226,0.4002,2501.1,2501.0,0.40021]
[1729704901424,0.4002,2501.1,2500.5,1.04085953]
[1729704901425,3.2078,2501.1,2500.5,1.04085953]
[1729704901624,0.40021,2501.0,2500.9,0.40022]
[1729704901925,4.88693427,2501.0,2500.9,40.8]
[1729704902323,0.40024,2500.9,2500.6,3.12]
[1729704902523,4.48672427,2501.0,2500.9,0.40023]
[1729704902718,0.40024,2500.9,2500.8,0.40024]
[1729704903026,0.40025,2500.8,2500.7,40.8]
[1729704903219,0.40028,2500.7,2500.5,0.40028]
[1729704903420,0.4003,2500.5,2500.1,3.476]
[1729704903617,3.6081,2500.5,2500.1,1.7463]
[1729704903819,3.2078,2500.5,2500.4,0.40031]
[1729704904227,7.55237044,2500.5,2500.4,0.40031]
[1729704905918,3.2078,2500.5,2500.4,4.39951]
[1729704909129,3.2078,2500.6,2500.5,0.4003]
[1729704910026,1.7036,2500.8,2500.7,0.40026]
[1729704910326,9.09606463,2500.8,2500.7,0.40026]
[1729704912333,9.49631463,2500.8,2500.7,0.40026]
[1729704912728,9.49631463,2500.8,2500.6,0.40027]
[1729704912925,0.40027,2500.7,2500.6,0.40028]
[1729704913124,0.40027,2500.7,2500.4,40.8]
[1729704913324,3.2078,2500.5,2500.4,0.4003]
[1729704913728,8.13184079,2500.5,2500.4,0.4003]
[1729704914128,7.73154079,2500.5,2500.4,0.4003]
[1729704915624,3.2078,2500.5,2500.4,4.3995]
[1729704916235,3.2078,2500.5,2500.4,45.1995]
[1729704920438,0.40031,2500.4,2500.3,0.40031]
[1729704920644,2.10551,2500.4,2500.3,0.40031]
[1729704920934,6.352051,2500.4,2500.3,41.20031]
[1729704921133,5.951741,2500.4,2499.8,2.654]
[1729704921338,0.40037,2500.1,2500.0,0.40035]
[1729704921543,3.2078,2500.2,2499.8,43.454]
[1729704921728,3.60815,2500.2,2500.1,0.40036]
[1729704922138,9.6996949,2500.2,2499.8,40.8]
[1729704922333,0.40038,2500.0,2499.9,0.40038]
[1729704922739,4.3340449,2500.0,2499.9,0.40038]
[1729704923239,4.86869614,2500.1,2500.0,0.40038]
[1729704923436,0.40037,2500.1,2500.0,0.40038]
[1729704923642,8.86869614,2500.1,2500.0,0.40038]
[1729704924639,8.86869614,2500.1,2499.6,1.00109]
[1729704924640,8.46832614,2500.1,2499.6,1.00109]
[1729704924947,3.60821,2499.9,2499.8,0.4004]
[1729704925136,3.2078,2499.9,2499.6,40.8]
[1729704925331,0.40042,2499.8,2499.7,0.40041]
[1729704926045,3.2078,2499.9,2499.5,1.00114]
[1729704926352,0.40043,2499.7,2499.6,0.40042]
[1729704926643,4.42198253,2499.7,2499.6,0.40042]
[1729704926844,8.42278253,2499.7,2499.6,0.40042]
[1729704927441,4.42198253,2499.7,2499.6,0.40042]
[1729704927743,8.82320253,2499.7,2499.6,0.40042]
[1729704928144,8.42278253,2499.7,2499.6,0.40042]
[1729704928332,8.82320253,2499.7,2499.6,0.40042]
[1729704928537,8.42278253,2499.7,2499.6,0.40042]
[1729704929044,4.42198253,2499.7,2499.6,0.40042]
[1729704929241,3.01938515,2499.7,2499.6,0.40042]
[1729704929442,3.2078,2499.9,2499.6,4.0008]
[1729704929747,3.2078,2499.9,2499.8,0.40041]
[1729704930040,3.2078,2500.3,2500.2,0.40034]
[1729704930641,3.60813,2500.3,2500.2,0.40034]
[1729704930844,3.60813,2500.3,2500.2,41.20034]
[1729704931051,14.88649614,2500.3,2499.7,1.6971]
[1729704931236,0.40042,2499.8,2499.7,0.40041]
[1729704931945,0.40046,2499.6,2499.5,0.40045]
[1729704932246,7.80414004,2499.6,2499.5,0.40045]
[1729704932448,0.40048,2499.5,2499.4,0.40046]
[1729704932745,0.40048,2499.5,2499.2,1.00126]
[1729704932746,3.60825,2499.6,2499.5,0.40046]
[1729704933145,8.18072311,2499.6,2499.5,0.40046]
[1729704933341,12.18152311,2499.6,2499.5,0.40046]
[1729704933541,0.40047,2499.5,2499.4,0.40046]
[1729704933744,1.98787,2499.5,2499.4,0.40046]
[1729704934048,1.98787,2499.5,2499.0,4.12132]
[1729704934049,10.06071055,2499.5,2499.0,1.00132]
[1729704934347,10.06071055,2499.5,2498.9,2.7368711]
[1729704934348,3.60829,2499.3,2499.2,0.4005]
[1729704934550,0.40051,2499.2,2499.1,0.4005]
[1729704934850,0.40054,2499.0,2498.9,1.4423111]
[1729704935045,4.40214,2499.0,2498.9,1.4423111]
[1729704935357,7.76115948,2499.0,2498.9,1.0417711]
[1729704935648,7.76115948,2499.0,2498.9,1.4423211]
[1729704937249,3.2078,2499.0,2498.9,4.7679211]
[1729704937446,3.2078,2499.0,2498.9,1.4423211]
[1729704938037,3.2078,2499.0,2498.9,0.40055]
[1729704938237,1.7107,2499.2,2498.8,3.3256]
[1729704938453,1.7107,2499.2,2499.1,0.40052]
[1729704938648,1.6815,2499.4,2499.3,0.40049]
[1729704939039,6.26645163,2499.4,2499.3,0.40049]
[1729704939444,5.86598163,2499.4,2499.3,0.40049]
[1729704943848,8.98598163,2499.4,2499.2,1.0417711]
[1729704944048,0.40052,2499.1,2499.0,0.40053]
[1729704944249,3.2078,2499.2,2498.9,1.0417711]
[1729704944548,3.2078,2499.2,2499.1,0.40052]
[1729704944862,7.51906138,2499.2,2499.1,2.11776474]
[1729704945055,7.51906138,2499.2,2499.1,3.68042139]
[1729704945352,7.51906138,2499.2,2499.1,1.44409481]
[1729704945559,7.51906138,2499.2,2499.1,3.68044826]
[1729704946347,7.51906138,2499.2,2499.1,3.16166869]
[1729704946658,7.51906138,2499.2,2499.1,3.16163323]
[1729704946861,7.51906138,2499.2,2499.1,2.11775615]
[1729704947159,7.51906138,2499.2,2499.1,3.6804128]
[1729704947354,7.51906138,2499.2,2499.1,3.16183806]
[1729704947563,7.51906138,2499.2,2499.1,1.44460191]
[1729704947860,7.51906138,2499.2,2499.1,3.16223763]
[1729704948253,7.51906138,2499.2,2499.1,1.44460191]
[1729704948450,7.51906138,2499.2,2499.1,0.40052]
[1729704948850,3.2078,2499.2,2499.1,5.44620191]
[1729704949155,3.2078,2499.2,2499.1,10.28375974]
[1729704949352,3.2078,2499.2,2499.1,10.28376809]
[1729704949651,3.2078,2499.2,2499.1,11.88540993]
[1729704949850,3.2078,2499.2,2499.1,10.16781859]
[1729704950054,3.2078,2499.2,2499.1,11.88541724]
[1729704950461,3.2078,2499.2,2499.1,10.16777301]
[1729704951258,3.2078,2499.2,2499.1,9.12372]
[1729704952757,3.2078,2499.2,2499.1,49.92372]
[1729704953357,4.8587,2499.5,2499.1,44.8016]
[1729704953557,0.40049,2499.4,2499.3,0.40047]
[1729704953759,4.93648341,2499.4,2499.3,0.40047]
[1729704955549,0.4005,2499.2,2499.1,0.40051]
[1729704955858,0.40055,2499.1,2499.0,0.40052]
[1729704956053,0.40055,2499.1,2498.8,1.0014]
[1729704956054,0.40057,2498.8,2498.7,0.40058]
[1729704956253,0.40057,2498.9,2498.8,0.40055]
[1729704956559,3.60837,2498.9,2498.8,0.40055]
[1729704956951,3.2078,2498.9,2498.8,0.40055]
[1729704957154,3.60835,2498.9,2498.8,0.40055]
[1729704957358,8.09340393,2498.9,2498.8,0.40055]
[1729704957955,12.09500393,2498.9,2498.8,0.40055]
[1729704959662,8.09340393,2498.9,2498.8,0.40055]
[1729704959857,12.09500393,2498.9,2498.8,0.40055]
[1729704960660,11.69445393,2498.9,2498.8,0.40055]
[1729704961065,7.69285393,2498.9,2498.8,0.40055]
[1729704961860,8.09340393,2498.9,2498.8,0.40055]
[1729704962466,7.69285393,2498.9,2498.8,0.40055]
[1729704963262,8.09340393,2498.9,2498.8,0.40055]
[1729704963665,8.09340393,2498.9,2498.5,2.67563]
[1729704963666,0.40059,2498.8,2498.7,0.40057]
[1729704963867,2.07469,2498.8,2498.7,0.40057]
[1729704964071,6.55177626,2498.8,2498.7,0.40057]
[1729704964470,6.15118626,2498.8,2498.7,0.40057]
[1729704964669,6.55175626,2498.8,2498.7,0.40057]
[1729704966773,1.00147,2498.7,2497.8,1.04405301]
[1729704967071,0.40071,2498.0,2497.9,0.40071]
[1729704967482,7.71057015,2498.0,2497.9,0.40071]
[1729704967673,8.11127015,2498.0,2497.9,0.40071]
[1729704968172,8.11127015,2498.0,2497.6,2.66579]
[1729704968173,0.40076,2497.7,2497.6,0.40075]
[1729704968479,8.71235015,2498.0,2497.7,0.40073]
[1729704968480,0.40074,2497.8,2497.7,0.40073]
[1729704969170,3.2078,2497.9,2497.4,1.00197]
[1729704969674,4.63201715,2497.8,2497.7,0.40073]
[1729704969877,4.23126715,2497.8,2497.3,3.2078]
[1729704970171,4.23126715,2497.8,2496.3,40.8]
[1729704970172,3.2078,2497.6,2496.8,4.25185301]
[1729704970368,3.2078,2497.3,2497.2,0.40082]
[1729704970670,3.2078,2497.3,2496.9,3.12]
[1729704971075,3.2078,2497.7,2497.6,0.40076]
[1729704971380,4.8946,2498.0,2497.5,3.12]
[1729704971572,4.8946,2498.0,2497.9,0.40071]
[1729704971769,4.8946,2498.0,2497.9,3.52071]
[1729704971770,3.2078,2498.0,2497.9,3.52071]
[1729704971977,3.3384,2498.4,2498.0,1.00175]
[1729704971978,6.5462,2498.4,2498.0,1.00175]
[1729704972175,4.8946,2498.4,2498.3,0.40065]
[1729704972477,3.2078,2498.4,2498.3,41.20065]
[1729704972873,7.37157059,2498.4,2498.3,41.20065]
[1729704973676,7.37157059,2498.4,2498.3,48.32305]
[1729704973876,3.2078,2498.4,2498.3,48.32305]
[1729704974179,3.2078,2498.4,2498.3,45.20305]
[1729704975182,7.83359469,2498.4,2498.3,41.20065]
[1729704976480,3.2078,2498.4,2498.3,41.20065]
[1729704976780,3.2078,2498.4,2498.3,45.20305]
[1729704977182,7.67905663,2498.4,2498.3,41.20065]
[1729704978279,3.2078,2498.4,2498.3,45.20305]
[1729704978682,3.3469,2498.8,2498.3,51.1302]
[1729704978982,3.2078,2499.4,2499.3,0.40049]
[1729704979387,7.40617739,2499.4,2499.3,0.40049]
[1729704979686,4.19837739,2499.4,2499.3,0.40049]
[1729704980073,7.40617739,2499.4,2499.3,0.40049]
[1729704984480,3.2078,2499.4,2499.3,4.40129]
[1729704984687,3.2078,2499.7,2499.6,0.40044]
[1729704984880,3.60822,2499.7,2499.6,0.40044]
[1729704985076,3.2078,2499.7,2499.6,0.40044]
[1729704986076,7.2086,2499.7,2499.1,4.8993]
[1729704986284,7.2086,2499.7,2498.3,42.80323]
[1729704986285,0.40055,2499.0,2498.9,0.40055]
[1729704986686,4.55486111,2499.0,2498.4,7.47067]
[1729704986887,0.40058,2498.7,2498.6,0.40058]
[1729704987080,0.40061,2498.6,2498.5,0.40061]
[1729704987381,4.85129,2499.2,2498.6,0.4006]
[1729704987382,4.37428726,2498.7,2498.6,0.4006]
[1729704987575,4.77484726,2498.9,2498.8,0.40057]
[1729704987781,7.58208726,2499.1,2498.6,1.00151]
[1729704987978,3.2078,2499.1,2498.6,1.00151]
[1729704988182,0.40055,2498.9,2498.8,0.40056]
[1729704988686,4.21214081,2498.9,2498.8,0.40057]
[1729704989077,0.40059,2498.7,2498.5,0.40061]
[1729704989281,0.40061,2498.6,2498.4,3.74202]
[1729704989484,4.8434847,2498.6,2498.4,2.14612]
[1729704989688,8.1219,2498.8,2498.4,0.40062]
[1729704989990,8.1219,2498.8,2498.2,0.40066]
[1729704989991,0.40065,2498.3,2498.2,0.40066]
[1729704990187,0.40063,2498.4,2498.3,0.40064]
[1729704990382,3.2078,2498.5,2498.2,0.40066]
[1729704990383,0.40066,2498.3,2498.2,0.40066]
[1729704990779,4.90450388,2498.3,2498.2,0.40066]
[1729704990984,8.16370388,2498.3,2498.2,0.40066]
[1729704992189,0.40068,2498.1,2498.0,41.20068]
[1729704992498,0.40073,2497.9,2497.8,0.40072]
[1729704992689,0.40071,2498.0,2497.9,0.4007]
[1729704993086,4.65687309,2498.0,2497.9,0.4007]
[1729704993493,4.25616309,2498.0,2497.7,1.7039]
[1729704993795,0.40071,2498.0,2497.9,0.40071]
[1729704993993,4.52178402,2498.1,2498.0,0.4007]
[1729704994190,3.2078,2498.6,2498.5,0.40062]
[1729704994191,5.237,2498.6,2498.5,0.40062]
[1729704994391,4.8364,2498.6,2498.5,0.40062]
[1729704994593,7.41739094,2498.6,2498.5,0.40062]
[1729704994794,3.2078,2498.6,2498.5,4.40302]
[1729704996693,3.60833,2499.1,2499.0,0.40054]
[1729704996990,3.60833,2499.1,2498.6,1.00148]
[1729704996991,0.40054,2499.0,2498.9,0.40054]
[1729704997189,0.46729595,2499.0,2498.9,0.40054]
[1729704997390,4.76426452,2499.0,2498.9,0.40054]
[1729704997986,4.36372452,2499.0,2498.9,0.40054]
[1729704998186,4.29696857,2499.0,2498.9,0.40054]
[1729704998394,3.2078,2499.4,2498.9,7.8516]
[1729704998591,3.2078,2499.4,2499.3,0.40049]
[1729704998788,3.6750319,2499.4,2499.3,0.40049]
[1729704998988,3.2745619,2499.4,2499.3,0.40049]
[1729704999895,3.60827,2499.4,2499.3,0.40049]
[1729705000103,3.67505817,2499.4,2499.3,0.40049]
[1729705000492,3.27458817,2499.4,2499.3,0.40049]
[1729705000793,3.60821,2499.8,2499.7,0.40042]
[1729705001204,8.24397815,2499.8,2499.7,0.40042]
[1729705001494,3.60821,2499.8,2499.7,0.40042]
[1729705001707,8.24397729,2499.8,2499.7,0.40042]
[1729705002091,8.24397693,2499.8,2499.7,0.40042]
[1729705002291,7.77675288,2499.8,2499.7,0.40042]
[1729705004497,3.2078,2499.8,2499.7,0.40042]
[1729705005100,3.60821,2499.8,2499.7,0.40042]
[1729705005494,3.2078,2499.8,2499.7,0.40042]
[1729705006191,3.2078,2499.8,2499.7,8.25122]
[1729705006893,0.40035,2500.2,2500.1,0.40036]